[Event "GrandPrix_29.05"]
[Site "Chess.com"]
[Date "2020.05.29"]
[Round "8"]
[White "Saxar85"]
[Black "VolodymyrMolyboha"]
[Result "1-0"]
[WhiteElo "2496"]
[BlackElo "2281"]
[TimeControl "600+2"]
[EndTime "13:05:59 PDT"]
[Termination "Saxar85 won by resignation"]

1. Nf3 {[%clk 0:10:00.4]} 1... d5 {[%clk 0:09:54.9]} 2. g3 {[%clk 0:10:00.7]}
2... Nf6 {[%clk 0:09:51]} 3. Bg2 {[%clk 0:10:01.3]} 3... Bf5 {[%clk 0:09:50.8]}
4. c4 {[%clk 0:09:59.6]} 4... c6 {[%clk 0:09:50.8]} 5. O-O {[%clk 0:09:58.5]}
5... e6 {[%clk 0:09:51.3]} 6. cxd5 {[%clk 0:09:54.8]} 6... exd5 {[%clk
0:09:51.4]} 7. d3 {[%clk 0:09:54.5]} 7... Be7 {[%clk 0:09:51.1]} 8. Qb3 {[%clk
0:09:47.8]} 8... Qb6 {[%clk 0:09:50.9]} 9. Qc2 {[%clk 0:09:48.4]} 9... O-O
{[%clk 0:09:47.8]} 10. Nc3 {[%clk 0:09:48.7]} 10... Nbd7 {[%clk 0:09:20.6]} 11.
e4 {[%clk 0:09:39.7]} 11... dxe4 {[%clk 0:09:16.3]} 12. dxe4 {[%clk 0:09:40.1]}
12... Bg6 {[%clk 0:09:16.8]} 13. Be3 {[%clk 0:09:35.3]} 13... Qa5 {[%clk
0:09:17]} 14. h3 {[%clk 0:09:11]} 14... Rfe8 {[%clk 0:09:09.8]} 15. a3 {[%clk
0:08:58.9]} 15... Qa6 {[%clk 0:08:45.8]} 16. Nh4 {[%clk 0:08:11.8]} 16... Bc5
{[%clk 0:08:38.9]} 17. Rfe1 {[%clk 0:08:04.5]} 17... Bxe3 {[%clk 0:07:46.7]} 18.
Rxe3 {[%clk 0:08:02.9]} 18... Qb6 {[%clk 0:07:43.4]} 19. Rae1 {[%clk 0:07:33.4]}
19... Ne5 {[%clk 0:06:26.8]} 20. Na4 {[%clk 0:07:26.6]} 20... Qd4 {[%clk
0:05:55.6]} 21. Nxg6 {[%clk 0:06:39.6]} 21... hxg6 {[%clk 0:05:37.5]} 22. Rd1
{[%clk 0:06:30.4]} 22... Qc4 {[%clk 0:05:19.8]} 23. Rc3 {[%clk 0:06:30.1]} 23...
Qe6 {[%clk 0:04:44.2]} 24. Nc5 {[%clk 0:06:05.6]} 24... Qc8 {[%clk 0:04:42.2]}
25. f4 {[%clk 0:05:24.8]} 25... Ned7 {[%clk 0:04:40.5]} 26. Nxd7 {[%clk
0:05:20.2]} 26... Nxd7 {[%clk 0:04:39.1]} 27. b4 {[%clk 0:05:12.4]} 27... a6
{[%clk 0:04:25]} 28. Rcd3 {[%clk 0:04:51.8]} 28... Nf8 {[%clk 0:04:19.3]} 29.
Rd6 {[%clk 0:04:39.6]} 29... g5 {[%clk 0:04:13.1]} 30. f5 {[%clk 0:04:33.2]}
30... Re5 {[%clk 0:04:02.8]} 31. Qd2 {[%clk 0:04:02.4]} 31... f6 {[%clk
0:03:41.8]} 32. Qa2+ {[%clk 0:03:37.4]} 32... Kh8 {[%clk 0:03:39.5]} 33. Qf7
{[%clk 0:03:36.5]} 33... Qe8 {[%clk 0:02:33.6]} 34. Qxb7 {[%clk 0:03:16.6]}
34... a5 {[%clk 0:02:34.5]} 35. Qxc6 {[%clk 0:03:04.6]} 35... axb4 {[%clk
0:02:29.9]} 36. axb4 {[%clk 0:02:49.4]} 36... Qxc6 {[%clk 0:02:21.7]} 37. Rxc6
{[%clk 0:02:49.6]} 37... Rb8 {[%clk 0:02:22.3]} 38. Rd4 {[%clk 0:02:39.2]} 38...
Reb5 {[%clk 0:02:19.3]} 39. Bf1 {[%clk 0:02:38.3]} 39... R5b7 {[%clk 0:02:15.1]}
40. Ba6 {[%clk 0:01:57.3]} 40... Rxb4 {[%clk 0:01:31.5]} 41. Rxb4 {[%clk
0:01:50.2]} 41... Rxb4 {[%clk 0:01:31.8]} 42. Rc8 {[%clk 0:01:50.9]} 42... Kg8
{[%clk 0:01:31.4]} 43. Bc4+ {[%clk 0:01:37]} 43... Rxc4 {[%clk 0:01:31.7]} 44.
Rxc4 {[%clk 0:01:37.2]} 44... Nd7 {[%clk 0:01:32.9]} 45. Rc7 {[%clk 0:01:33.6]}
45... Ne5 {[%clk 0:01:33.6]} 46. Kf2 {[%clk 0:01:34.1]} 46... Kh7 {[%clk
0:01:30.9]} 47. Ke3 {[%clk 0:01:33.5]} 47... Kg8 {[%clk 0:01:30.3]} 48. Kd4
{[%clk 0:01:32.8]} 48... Kh7 {[%clk 0:01:31.2]} 49. Kd5 {[%clk 0:01:33]} 49...
g4 {[%clk 0:01:25.9]} 50. h4 {[%clk 0:01:26.4]} 50... Nf3 {[%clk 0:01:21.1]} 51.
Ke6 {[%clk 0:01:10.7]} 51... Nd2 {[%clk 0:00:56.6]} 52. e5 {[%clk 0:01:08.6]}
52... Ne4 {[%clk 0:00:54.5]} 53. exf6 {[%clk 0:00:52.7]} 53... Nxf6 {[%clk
0:00:54.6]} 54. Rc4 {[%clk 0:00:44.4]} 54... Kg8 {[%clk 0:00:51.5]} 55. Ke5
{[%clk 0:00:43.6]} 55... Kf7 {[%clk 0:00:50.1]} 56. Kf4 {[%clk 0:00:43.8]} 56...
Kg8 {[%clk 0:00:49.9]} 57. Kg5 {[%clk 0:00:41.9]} 57... Kh7 {[%clk 0:00:50.6]}
58. Rxg4 {[%clk 0:00:38.8]} 58... Ng8 {[%clk 0:00:22.8]} 59. Rd4 {[%clk
0:00:35.2]} 59... Nf6 {[%clk 0:00:22.5]} 60. g4 {[%clk 0:00:35.1]} 60... Ng8
{[%clk 0:00:23]} 61. Kf4 {[%clk 0:00:34.7]} 61... Nf6 {[%clk 0:00:24]} 62. Rd6
{[%clk 0:00:33.4]} 62... Ne8 {[%clk 0:00:24.2]} 63. Rc6 {[%clk 0:00:33.2]} 63...
Nf6 {[%clk 0:00:25.1]} 64. Rxf6 {[%clk 0:00:26.2]} 64... gxf6 {[%clk 0:00:25.7]}
65. g5 {[%clk 0:00:26.6]} 65... Kg7 {[%clk 0:00:26.7]} 66. Ke4 {[%clk
0:00:26.2]} 66... Kf7 {[%clk 0:00:27.4]} 67. Kd5 {[%clk 0:00:26.6]} 67... Ke7
{[%clk 0:00:28.5]} 68. g6 {[%clk 0:00:25.3]} 68... Kf8 {[%clk 0:00:29.1]} 69.
Ke6 {[%clk 0:00:25.7]} 69... Kg7 {[%clk 0:00:30.3]} 70. Ke7 {[%clk 0:00:25.9]}
70... Kg8 {[%clk 0:00:28.6]} 71. Kxf6 {[%clk 0:00:26]} 71... Kh8 {[%clk
0:00:29.8]} 72. g7+ {[%clk 0:00:22.6]} 72... Kg8 {[%clk 0:00:30.7]} 73. h5
{[%clk 0:00:18.5]} 73... Kh7 {[%clk 0:00:30.9]} 74. Kf7 {[%clk 0:00:18.8]} 1-0

[Event "GrandPrix_29.05"]
[Site "Chess.com"]
[Date "2020.05.29"]
[Round "8"]
[White "econpower"]
[Black "rim1618"]
[Result "0-1"]
[WhiteElo "2169"]
[BlackElo "2401"]
[TimeControl "600+2"]
[EndTime "13:06:00 PDT"]
[Termination "rim1618 won by resignation"]

1. c4 {[%clk 0:10:01.9]} 1... g6 {[%clk 0:10:00.4]} 2. g3 {[%clk 0:10:02.4]}
2... Bg7 {[%clk 0:10:02.3]} 3. Bg2 {[%clk 0:10:03.5]} 3... d6 {[%clk 0:10:03.6]}
4. Nc3 {[%clk 0:10:04.6]} 4... e5 {[%clk 0:10:05]} 5. e3 {[%clk 0:10:06.1]} 5...
f5 {[%clk 0:10:06.2]} 6. Nge2 {[%clk 0:10:07.3]} 6... Nf6 {[%clk 0:10:07.4]} 7.
d3 {[%clk 0:10:04]} 7... O-O {[%clk 0:10:07.6]} 8. O-O {[%clk 0:10:05.1]} 8...
c6 {[%clk 0:10:06.3]} 9. f4 {[%clk 0:09:59.3]} 9... Be6 {[%clk 0:10:03.5]} 10.
h3 {[%clk 0:09:58.6]} 10... Nbd7 {[%clk 0:09:57.8]} 11. Rb1 {[%clk 0:09:43.4]}
11... Qe7 {[%clk 0:09:32.9]} 12. Kh2 {[%clk 0:09:14.6]} 12... Rac8 {[%clk
0:09:26]} 13. b3 {[%clk 0:09:09.2]} 13... a6 {[%clk 0:09:11.4]} 14. a4 {[%clk
0:08:59.4]} 14... a5 {[%clk 0:09:10.6]} 15. Ba3 {[%clk 0:08:56.9]} 15... Bf7
{[%clk 0:08:54.2]} 16. b4 {[%clk 0:08:08]} 16... d5 {[%clk 0:08:29.4]} 17. cxd5
{[%clk 0:08:05.2]} 17... Nxd5 {[%clk 0:07:49.4]} 18. Bxd5 {[%clk 0:07:20.6]}
18... cxd5 {[%clk 0:07:51.3]} 19. Nb5 {[%clk 0:07:21.6]} 19... exf4 {[%clk
0:07:35]} 20. exf4 {[%clk 0:07:16.7]} 20... Rfe8 {[%clk 0:07:33.8]} 21. Re1
{[%clk 0:07:01.8]} 21... Qe3 {[%clk 0:07:24.9]} 22. d4 {[%clk 0:06:43.6]} 22...
Qf2+ {[%clk 0:07:18.5]} 23. Kh1 {[%clk 0:06:44.3]} 23... Nf6 {[%clk 0:07:00.9]}
24. Nd6 {[%clk 0:06:25.6]} 24... Qf3+ {[%clk 0:06:50.9]} 25. Kg1 {[%clk
0:06:24.8]} 25... Qxa3 {[%clk 0:06:22.2]} 26. Rb3 {[%clk 0:06:12.2]} 26... Qxa4
{[%clk 0:06:22.9]} 27. Nxc8 {[%clk 0:06:12.7]} 27... Rxc8 {[%clk 0:05:44.3]} 28.
Rc3 {[%clk 0:06:12.5]} 28... Qd7 {[%clk 0:05:35.3]} 29. Rxc8+ {[%clk 0:06:12.3]}
29... Qxc8 {[%clk 0:05:36.7]} 30. bxa5 {[%clk 0:06:14.2]} 30... Ne4 {[%clk
0:05:35.8]} 31. Qb3 {[%clk 0:06:11.2]} 31... Nd2 {[%clk 0:05:20.1]} 32. Qd3
{[%clk 0:05:52.7]} 32... Nc4 {[%clk 0:05:20.8]} 33. Ra1 {[%clk 0:05:42.7]} 33...
Be8 {[%clk 0:05:10.1]} 34. Kf2 {[%clk 0:05:39.9]} 34... Nd6 {[%clk 0:04:47.4]}
35. Rc1 {[%clk 0:05:38.7]} 35... Qa8 {[%clk 0:04:40.7]} 36. Qa3 {[%clk
0:05:34.2]} 36... Bf8 {[%clk 0:04:28.9]} 37. Qa2 {[%clk 0:05:23.8]} 37... Bc6
{[%clk 0:04:17.6]} 38. Ng1 {[%clk 0:05:19.8]} 38... Ne4+ {[%clk 0:04:14]} 39.
Kg2 {[%clk 0:05:19.7]} 39... Bb4 {[%clk 0:04:11.1]} 40. a6 {[%clk 0:05:20.4]}
40... bxa6 {[%clk 0:04:09.8]} 41. Nf3 {[%clk 0:05:21]} 41... a5 {[%clk
0:03:59.1]} 42. Ne5 {[%clk 0:05:21.7]} 42... Bc3 {[%clk 0:03:43.2]} 43. Rxc3
{[%clk 0:04:18.8]} 43... Nxc3 {[%clk 0:03:41.9]} 44. Qc2 {[%clk 0:04:20.7]}
44... a4 {[%clk 0:02:53.2]} 45. Qxc3 {[%clk 0:04:21.4]} 45... Be8 {[%clk
0:02:53.9]} 46. Qa3 {[%clk 0:04:17.1]} 46... Qa7 {[%clk 0:02:54.2]} 47. Nf3
{[%clk 0:04:17.5]} 47... h6 {[%clk 0:02:33.6]} 48. h4 {[%clk 0:04:18]} 48... Qc7
{[%clk 0:02:19.9]} 49. Ne5 {[%clk 0:03:17.8]} 49... Qc2+ {[%clk 0:02:18.5]} 50.
Kg1 {[%clk 0:03:15.6]} 50... Qd1+ {[%clk 0:02:17.3]} 51. Kg2 {[%clk 0:03:10.7]}
51... Qd2+ {[%clk 0:02:17.7]} 52. Kh1 {[%clk 0:03:08.8]} 52... Qe1+ {[%clk
0:02:09.9]} 53. Kh2 {[%clk 0:03:05.7]} 53... Qf2+ {[%clk 0:02:06.1]} 54. Kh1
{[%clk 0:03:06.7]} 54... Qe1+ {[%clk 0:01:49.8]} 55. Kh2 {[%clk 0:03:07.4]}
55... Qd2+ {[%clk 0:01:49]} 56. Kh1 {[%clk 0:03:08]} 56... Qd1+ {[%clk
0:01:42.6]} 57. Kh2 {[%clk 0:01:29.9]} 57... Qc2+ {[%clk 0:01:42.2]} 58. Kh1
{[%clk 0:01:30.1]} 58... Qc7 {[%clk 0:01:39]} 59. Kg2 {[%clk 0:01:27.7]} 59...
Kg7 {[%clk 0:01:34.6]} 60. Kh2 {[%clk 0:01:04.2]} 60... Bb5 {[%clk 0:01:34.3]}
61. Qb2 {[%clk 0:00:53.2]} 61... Qa5 {[%clk 0:01:15.7]} 62. Nf3 {[%clk
0:00:46.4]} 62... a3 {[%clk 0:01:13.7]} 63. Qa2 {[%clk 0:00:34]} 63... Bc4
{[%clk 0:01:13.2]} 64. Qb1 {[%clk 0:00:35.5]} 64... Qa7 {[%clk 0:01:03.9]} 65.
Qe1 {[%clk 0:00:32.1]} 65... a2 {[%clk 0:01:02.1]} 66. Qe5+ {[%clk 0:00:34]}
66... Kh7 {[%clk 0:01:02.9]} 67. h5 {[%clk 0:00:35.9]} 67... a1=Q {[%clk
0:00:33.7]} 68. hxg6+ {[%clk 0:00:36.2]} 68... Kxg6 {[%clk 0:00:34]} 69. Nh4+
{[%clk 0:00:36.4]} 69... Kf7 {[%clk 0:00:35]} 70. Qxf5+ {[%clk 0:00:36.5]} 70...
Ke8 {[%clk 0:00:36.2]} 71. Qc8+ {[%clk 0:00:35.6]} 71... Kf7 {[%clk 0:00:36.9]}
72. Qf5+ {[%clk 0:00:33.3]} 72... Ke7 {[%clk 0:00:32.6]} 73. Ng6+ {[%clk
0:00:31]} 73... Kd8 {[%clk 0:00:31.5]} 74. Qf8+ {[%clk 0:00:29.1]} 74... Kc7
{[%clk 0:00:32.4]} 75. Qe7+ {[%clk 0:00:30.1]} 75... Kb6 {[%clk 0:00:26.7]} 76.
Qb4+ {[%clk 0:00:30.7]} 76... Ka6 {[%clk 0:00:26.1]} 77. Qc5 {[%clk 0:00:32.3]}
77... Qxc5 {[%clk 0:00:26.4]} 0-1

[Event "GrandPrix_29.05"]
[Site "Chess.com"]
[Date "2020.05.29"]
[Round "8"]
[White "caspiwins"]
[Black "Infernal_XaM"]
[Result "1-0"]
[WhiteElo "2406"]
[BlackElo "2461"]
[TimeControl "600+2"]
[EndTime "13:06:03 PDT"]
[Termination "caspiwins won by resignation"]

1. e4 {[%clk 0:10:01.9]} 1... e6 {[%clk 0:10:00.4]} 2. d4 {[%clk 0:10:02.1]}
2... d5 {[%clk 0:10:02.3]} 3. Nc3 {[%clk 0:10:02.1]} 3... Bb4 {[%clk 0:10:02.6]}
4. e5 {[%clk 0:10:02.8]} 4... c5 {[%clk 0:10:03.5]} 5. a3 {[%clk 0:10:03.6]}
5... Bxc3+ {[%clk 0:10:04.8]} 6. bxc3 {[%clk 0:10:05.5]} 6... Qc7 {[%clk
0:10:06.3]} 7. Qg4 {[%clk 0:09:06.3]} 7... f6 {[%clk 0:10:06]} 8. Bb5+ {[%clk
0:08:49.3]} 8... Kf8 {[%clk 0:10:05.9]} 9. a4 {[%clk 0:08:24.4]} 9... f5 {[%clk
0:09:47.1]} 10. Qh5 {[%clk 0:07:56.2]} 10... g6 {[%clk 0:09:45]} 11. Qh4 {[%clk
0:07:56.7]} 11... c4 {[%clk 0:09:42.4]} 12. Ba3+ {[%clk 0:07:22.1]} 12... Kg7
{[%clk 0:09:20.8]} 13. Bd6 {[%clk 0:07:16.4]} 13... Qf7 {[%clk 0:09:04.5]} 14.
Qd8 {[%clk 0:06:32.3]} 14... Nh6 {[%clk 0:08:46.7]} 15. Qf6+ {[%clk 0:05:53.8]}
15... Qxf6 {[%clk 0:08:45.7]} 16. exf6+ {[%clk 0:05:55.7]} 16... Kf7 {[%clk
0:08:47.2]} 17. Nf3 {[%clk 0:05:18.3]} 17... Ng4 {[%clk 0:08:41.9]} 18. a5
{[%clk 0:04:42.2]} 18... Nxf6 {[%clk 0:08:35.2]} 19. Ne5+ {[%clk 0:04:42.8]}
19... Kg7 {[%clk 0:08:34.5]} 20. f3 {[%clk 0:04:33]} 20... Bd7 {[%clk
0:08:04.6]} 21. Bxb8 {[%clk 0:04:11.3]} 21... Bxb5 {[%clk 0:08:04.4]} 22. Bd6
{[%clk 0:04:12]} 22... Rhe8 {[%clk 0:07:44.8]} 23. Rb1 {[%clk 0:04:05.3]} 23...
a6 {[%clk 0:07:44]} 24. Kd2 {[%clk 0:03:58.1]} 24... Rad8 {[%clk 0:07:42.9]} 25.
Bc5 {[%clk 0:03:55.6]} 25... h6 {[%clk 0:07:37.7]} 26. h4 {[%clk 0:03:42.4]}
26... Rc8 {[%clk 0:07:34.7]} 27. Rbe1 {[%clk 0:03:31.2]} 27... Rxc5 {[%clk
0:06:42.9]} 28. dxc5 {[%clk 0:03:32.1]} 28... Rc8 {[%clk 0:06:44.6]} 29. g4
{[%clk 0:03:32.8]} 29... fxg4 {[%clk 0:06:35.3]} 30. Nxg4 {[%clk 0:03:29.6]}
30... Bd7 {[%clk 0:05:56.9]} 31. Rb1 {[%clk 0:03:27.7]} 31... Rc7 {[%clk
0:05:54.8]} 32. Ne5 {[%clk 0:03:27.8]} 32... Be8 {[%clk 0:05:15.9]} 33. Rhg1
{[%clk 0:03:24.5]} 33... Nd7 {[%clk 0:04:59.6]} 34. Nxg6 {[%clk 0:02:48.3]}
34... Bxg6 {[%clk 0:04:58.8]} 35. h5 {[%clk 0:02:49.7]} 35... Ne5 {[%clk
0:04:58.6]} 36. Ke3 {[%clk 0:02:47.9]} 36... Kf6 {[%clk 0:04:55.6]} 37. hxg6
{[%clk 0:02:16.8]} 37... Nxg6 {[%clk 0:04:56.1]} 38. Kd4 {[%clk 0:01:58.7]}
38... Ne5 {[%clk 0:04:40.4]} 39. Rh1 {[%clk 0:01:27.9]} 39... Rh7 {[%clk
0:04:40.8]} 40. f4 {[%clk 0:01:20.6]} 40... Nc6+ {[%clk 0:04:36.8]} 41. Ke3
{[%clk 0:01:21.4]} 41... Nxa5 {[%clk 0:04:36.4]} 42. Rh5 {[%clk 0:01:20.2]}
42... Nc6 {[%clk 0:04:33.1]} 43. Rbh1 {[%clk 0:01:20]} 43... Kg6 {[%clk
0:04:33.7]} 44. R5h2 {[%clk 0:01:20.4]} 44... Ne7 {[%clk 0:04:33.3]} 45. Kd4
{[%clk 0:01:17.4]} 45... Kf7 {[%clk 0:04:10.9]} 46. Ke5 {[%clk 0:01:06.6]} 46...
Nc6+ {[%clk 0:02:11.5]} 47. Kd6 {[%clk 0:01:06.7]} 47... d4 {[%clk 0:02:13]} 48.
Rxh6 {[%clk 0:00:50.2]} 48... Rxh6 {[%clk 0:02:11.6]} 49. Rxh6 {[%clk
0:00:52.1]} 49... d3 {[%clk 0:01:58]} 50. cxd3 {[%clk 0:00:52]} 50... cxd3
{[%clk 0:01:59.4]} 51. Rh3 {[%clk 0:00:49]} 51... d2 {[%clk 0:01:46.8]} 52. Rd3
{[%clk 0:00:49.3]} 52... Na5 {[%clk 0:01:48.4]} 53. Kc7 {[%clk 0:00:48.9]} 53...
Nb3 {[%clk 0:01:49.4]} 54. Rd8 {[%clk 0:00:19.9]} 54... a5 {[%clk 0:01:49.1]}
55. Kxb7 {[%clk 0:00:19.3]} 55... Ke7 {[%clk 0:01:39]} 56. Kc8 {[%clk
0:00:16.5]} 56... a4 {[%clk 0:01:37.9]} 57. c6 {[%clk 0:00:17.9]} 57... a3
{[%clk 0:01:39.3]} 58. Rd7+ {[%clk 0:00:17.1]} 58... Kf6 {[%clk 0:01:37.8]} 59.
c7 {[%clk 0:00:16.6]} 59... a2 {[%clk 0:01:27.3]} 60. Kb8 {[%clk 0:00:14.9]}
60... Nc5 {[%clk 0:01:11.6]} 61. Rxd2 {[%clk 0:00:09.8]} 61... a1=Q {[%clk
0:00:52.9]} 62. c8=Q {[%clk 0:00:10.8]} 62... Qb1+ {[%clk 0:00:50.9]} 63. Kc7
{[%clk 0:00:10]} 63... Qh7+ {[%clk 0:00:40.4]} 64. Kc6 {[%clk 0:00:10]} 64...
Qe4+ {[%clk 0:00:27.6]} 65. Kxc5 {[%clk 0:00:10.9]} 65... Qe3+ {[%clk
0:00:28.8]} 66. Rd4 {[%clk 0:00:12]} 66... Qxc3+ {[%clk 0:00:29.3]} 67. Rc4
{[%clk 0:00:13.5]} 67... Qa5+ {[%clk 0:00:28.7]} 68. Kc6 {[%clk 0:00:13.3]}
68... Qd5+ {[%clk 0:00:25.6]} 69. Kb6 {[%clk 0:00:14.5]} 69... Qd6+ {[%clk
0:00:26.7]} 70. Qc6 {[%clk 0:00:14.1]} 70... Qb8+ {[%clk 0:00:25.9]} 71. Ka6
{[%clk 0:00:14.7]} 1-0

[Event "GrandPrix_29.05"]
[Site "Chess.com"]
[Date "2020.05.29"]
[Round "8"]
[White "Bacyanide"]
[Black "GeorgMeier"]
[Result "0-1"]
[WhiteElo "2490"]
[BlackElo "2645"]
[TimeControl "600+2"]
[EndTime "13:06:07 PDT"]
[Termination "GeorgMeier won by resignation"]

1. d4 {[%clk 0:10:01.9]} 1... e6 {[%clk 0:10:00.6]} 2. Nf3 {[%clk 0:10:00.9]}
2... Nf6 {[%clk 0:10:01.6]} 3. Bf4 {[%clk 0:10:01]} 3... Be7 {[%clk 0:10:02]} 4.
h3 {[%clk 0:09:50.8]} 4... b6 {[%clk 0:10:02.6]} 5. e3 {[%clk 0:09:48.1]} 5...
O-O {[%clk 0:10:03.7]} 6. a4 {[%clk 0:09:48.7]} 6... c5 {[%clk 0:10:03.1]} 7.
Nbd2 {[%clk 0:09:47.6]} 7... d6 {[%clk 0:10:02.4]} 8. Bd3 {[%clk 0:09:41.1]}
8... Ba6 {[%clk 0:10:02.5]} 9. Bxa6 {[%clk 0:09:33.4]} 9... Nxa6 {[%clk
0:10:03.7]} 10. O-O {[%clk 0:09:32.7]} 10... Qc8 {[%clk 0:09:59.2]} 11. a5
{[%clk 0:09:28.1]} 11... b5 {[%clk 0:09:57.8]} 12. Qe2 {[%clk 0:09:16.2]} 12...
Qb7 {[%clk 0:09:58]} 13. Bg3 {[%clk 0:08:42.4]} 13... Rac8 {[%clk 0:09:41.4]}
14. e4 {[%clk 0:08:18.5]} 14... cxd4 {[%clk 0:08:59.4]} 15. Nxd4 {[%clk
0:08:17.7]} 15... b4 {[%clk 0:08:59.6]} 16. e5 {[%clk 0:07:35.4]} 16... dxe5
{[%clk 0:08:56.3]} 17. Bxe5 {[%clk 0:07:37.3]} 17... Rfd8 {[%clk 0:08:54.8]} 18.
N2f3 {[%clk 0:07:35.7]} 18... Rd5 {[%clk 0:08:03.8]} 19. Rfd1 {[%clk 0:06:48.3]}
19... Nc5 {[%clk 0:07:49.1]} 20. Qb5 {[%clk 0:06:21.1]} 20... a6 {[%clk
0:07:08.7]} 21. Qb6 {[%clk 0:04:42.3]} 21... Bd8 {[%clk 0:07:04.8]} 22. Qxb7
{[%clk 0:04:38.9]} 22... Nxb7 {[%clk 0:07:06.7]} 23. Ra4 {[%clk 0:03:58.1]}
23... Be7 {[%clk 0:04:11.2]} 24. Rda1 {[%clk 0:03:15.5]} 24... Ne4 {[%clk
0:03:24.9]} 25. Re1 {[%clk 0:02:47.3]} 25... Nf6 {[%clk 0:03:10.6]} 26. Bxf6
{[%clk 0:01:23.2]} 26... gxf6 {[%clk 0:03:09.6]} 27. Rea1 {[%clk 0:01:01.2]}
27... h5 {[%clk 0:02:27]} 28. b3 {[%clk 0:00:58.5]} 28... Nd8 {[%clk 0:01:56.6]}
29. Re1 {[%clk 0:00:52]} 29... Nc6 {[%clk 0:01:46.1]} 30. Nxc6 {[%clk
0:00:50.2]} 30... Rxc6 {[%clk 0:01:48]} 31. Ra2 {[%clk 0:00:45.4]} 31... Bd8
{[%clk 0:01:29.6]} 32. Re4 {[%clk 0:00:27]} 32... Rxa5 {[%clk 0:01:02.6]} 33.
Rxa5 {[%clk 0:00:27.2]} 33... Bxa5 {[%clk 0:01:04.5]} 34. Ne1 {[%clk 0:00:28]}
34... Kg7 {[%clk 0:00:59]} 35. Kf1 {[%clk 0:00:28.8]} 35... f5 {[%clk
0:00:57.8]} 36. Rd4 {[%clk 0:00:27.9]} 36... Kf6 {[%clk 0:00:56.8]} 37. Ke2
{[%clk 0:00:28.3]} 37... e5 {[%clk 0:00:54]} 38. Rd7 {[%clk 0:00:26.4]} 38...
Bb6 {[%clk 0:00:52.4]} 39. Rb7 {[%clk 0:00:26.5]} 39... a5 {[%clk 0:00:53.4]}
40. Rb8 {[%clk 0:00:23.7]} 40... f4 {[%clk 0:00:53.2]} 41. Rh8 {[%clk
0:00:24.4]} 41... Kg6 {[%clk 0:00:52.3]} 42. Rg8+ {[%clk 0:00:24.8]} 42... Kh7
{[%clk 0:00:36.8]} 43. Rg5 {[%clk 0:00:25.2]} 43... f6 {[%clk 0:00:37.7]} 44.
Rxh5+ {[%clk 0:00:25]} 44... Kg7 {[%clk 0:00:39.1]} 45. g3 {[%clk 0:00:19.1]}
45... fxg3 {[%clk 0:00:38]} 46. fxg3 {[%clk 0:00:21]} 46... Rc3 {[%clk
0:00:39.5]} 47. g4 {[%clk 0:00:17.1]} 47... Be3 {[%clk 0:00:31.9]} 48. Rf5
{[%clk 0:00:15.6]} 48... Bf4 {[%clk 0:00:32.9]} 49. Rh5 {[%clk 0:00:15.4]} 49...
Bg3 {[%clk 0:00:29.3]} 50. g5 {[%clk 0:00:16.5]} 50... Bxe1 {[%clk 0:00:26]} 51.
gxf6+ {[%clk 0:00:15.5]} 51... Kxf6 {[%clk 0:00:20.9]} 52. Kxe1 {[%clk 0:00:16]}
52... Rxc2 {[%clk 0:00:22.5]} 53. Rh6+ {[%clk 0:00:13.3]} 53... Kf5 {[%clk
0:00:23.6]} 54. Ra6 {[%clk 0:00:14.9]} 54... Rc3 {[%clk 0:00:21.1]} 55. Rxa5
{[%clk 0:00:15]} 55... Rxh3 {[%clk 0:00:22.1]} 56. Kd2 {[%clk 0:00:10.9]} 56...
Rxb3 {[%clk 0:00:23]} 57. Ra8 {[%clk 0:00:11.6]} 57... Ke4 {[%clk 0:00:23.6]}
58. Rh8 {[%clk 0:00:12.5]} 58... Rd3+ {[%clk 0:00:24.4]} 59. Ke2 {[%clk
0:00:12.1]} 59... Rd4 {[%clk 0:00:25.7]} 60. Rb8 {[%clk 0:00:10]} 60... Rc4
{[%clk 0:00:26.1]} 61. Rh8 {[%clk 0:00:10.2]} 61... Kd4 {[%clk 0:00:27.2]} 62.
Kd2 {[%clk 0:00:10.7]} 62... Rc5 {[%clk 0:00:26.4]} 63. Rb8 {[%clk 0:00:07.9]}
63... Kc4 {[%clk 0:00:27]} 64. Kc2 {[%clk 0:00:09.4]} 64... e4 {[%clk
0:00:25.4]} 65. Rd8 {[%clk 0:00:08.1]} 65... b3+ {[%clk 0:00:18.9]} 66. Kb2
{[%clk 0:00:08.3]} 66... Re5 {[%clk 0:00:19.4]} 67. Rc8+ {[%clk 0:00:02.9]}
67... Kd3 {[%clk 0:00:20.2]} 68. Kxb3 {[%clk 0:00:04.8]} 68... e3 {[%clk
0:00:21.3]} 69. Rc3+ {[%clk 0:00:05.2]} 69... Kd2 {[%clk 0:00:21.2]} 70. Rc2+
{[%clk 0:00:06.1]} 70... Kd1 {[%clk 0:00:22.6]} 71. Kb2 {[%clk 0:00:06.2]} 71...
Rb5+ {[%clk 0:00:23.1]} 72. Kc3 {[%clk 0:00:06.9]} 72... Rc5+ {[%clk 0:00:24.1]}
73. Kd3 {[%clk 0:00:08.4]} 73... Rxc2 {[%clk 0:00:25.3]} 74. Kxe3 {[%clk
0:00:09.7]} 74... Rd2 {[%clk 0:00:26.6]} 0-1